bitfinex/quotes_BTCUSD_20250221
["timestamp","ask_amount","ask_price","bid_price","bid_amount"]
[1740143820926,0.151011,99330.0,99329.0,0.00183116]
[1740143821123,0.25365669,99330.0,99329.0,0.00183116]
[1740143821453,0.40365669,99330.0,99329.0,0.00183116]
[1740143822265,0.301011,99330.0,99329.0,0.00183116]
[1740143824025,0.301011,99330.0,99329.0,0.00174056]
[1740143824227,0.301011,99330.0,99329.0,0.00364989]
[1740143824704,0.40365669,99330.0,99329.0,0.00364989]
[1740143826115,0.40465669,99330.0,99329.0,0.00864989]
[1740143826491,0.40365669,99330.0,99329.0,0.00364989]
[1740143826909,0.40465669,99330.0,99329.0,0.00864989]
[1740143827916,0.302011,99330.0,99329.0,0.00864989]
[1740143829348,0.302011,99330.0,99329.0,0.01749133]
[1740143829557,0.40465669,99330.0,99329.0,0.01749133]
[1740143829757,0.40465669,99330.0,99329.0,0.00864989]
[1740143830224,0.40465669,99330.0,99329.0,0.01749133]
[1740143830426,0.40465669,99330.0,99329.0,0.00664989]
[1740143830636,0.40365669,99330.0,99329.0,0.00164989]
[1740143831924,0.40465669,99330.0,99329.0,0.00764989]
[1740143832577,0.40365669,99330.0,99329.0,0.00164989]
[1740143832971,0.40465669,99330.0,99329.0,0.00764989]
[1740143836181,0.302011,99330.0,99329.0,0.01649133]
[1740143836332,0.152011,99330.0,99329.0,0.09969133]
[1740143837668,0.151011,99330.0,99329.0,0.09369133]
[1740143837934,0.152011,99330.0,99329.0,0.09769133]
[1740143838987,0.152011,99330.0,99329.0,0.10069133]
[1740143839470,0.151011,99330.0,99329.0,0.09669133]
[1740143839726,0.151011,99330.0,99329.0,0.01349133]
[1740143840204,0.40365669,99330.0,99329.0,8.9e-07]
[1740143840610,0.301039,99312.0,99311.0,0.0002]
[1740143840839,0.40368469,99312.0,99311.0,0.00032956]
[1740143842322,0.15,99304.0,99303.0,0.00884144]
[1740143842454,0.25264569,99304.0,99303.0,0.00884144]
[1740143842655,0.10264569,99304.0,99301.0,0.00884144]
[1740143842888,0.301054,99302.0,99301.0,0.00884144]
[1740143844450,0.151061,99297.0,99296.0,0.08012964]
[1740143844628,0.151061,99297.0,99296.0,0.08897108]
[1740143845872,0.152061,99297.0,99296.0,0.09897108]
[1740143846349,0.152061,99297.0,99296.0,0.10258987]
[1740143847312,0.152101,99297.0,99296.0,0.10258987]
[1740143847931,0.152101,99297.0,99296.0,0.09958987]
[1740143848142,0.152101,99297.0,99296.0,0.10458987]
[1740143848362,0.151101,99297.0,99296.0,0.09258987]
[1740143848566,0.151101,99297.0,99296.0,0.09958987]
[1740143848764,0.151101,99297.0,99296.0,0.10458987]
[1740143849192,0.151101,99297.0,99296.0,0.09758987]
[1740143849595,0.151101,99297.0,99296.0,0.10458987]
[1740143850163,4e-05,99297.0,99296.0,0.20723556]
[1740143850391,4e-05,99297.0,99296.0,0.2952709]
[1740143850587,4e-05,99302.0,99296.0,0.2952709]
[1740143850588,4e-05,99302.0,99301.0,0.00884144]
[1740143850774,4e-05,99302.0,99301.0,1.43150217]
[1740143850967,4e-05,99302.0,99301.0,1.46483493]
[1740143851175,0.151007,99333.0,99311.0,0.00880144]
[1740143851370,0.151007,99334.0,99311.0,1.28936206]
[1740143851658,0.151007,99333.0,99311.0,1.28815408]
[1740143852254,0.151005,99335.0,99311.0,1.28815408]
[1740143852426,0.201318,99345.0,99311.0,1.29515408]
[1740143852629,0.201354,99328.0,99311.0,1.29515408]
[1740143852849,8e-05,99312.0,99311.0,1.29515408]
[1740143853885,8e-05,99312.0,99311.0,1.28579408]
[1740143854091,8e-05,99312.0,99311.0,1.30211408]
[1740143854309,0.00012,99312.0,99311.0,1.30211408]
[1740143854864,0.00016,99312.0,99311.0,1.98611533]
[1740143855599,0.0002,99312.0,99311.0,1.98611533]
[1740143855923,1.99999996,99340.0,99329.0,0.00876144]
[1740143856124,1.99999996,99340.0,99339.0,0.00876144]
[1740143856332,1.99999996,99340.0,99339.0,1.10159015]
[1740143857382,1.99999996,99340.0,99339.0,1.20436548]
[1740143857789,1.99999996,99340.0,99339.0,1.19196414]
[1740143858251,1.99999996,99340.0,99339.0,1.19896414]
[1740143858456,1.99999996,99340.0,99339.0,1.20596414]
[1740143858662,1.99999996,99340.0,99339.0,1.21524414]
[1740143859043,1.99999996,99340.0,99339.0,1.21884162]
[1740143859181,2.00003996,99340.0,99339.0,1.21884162]
[1740143859588,2.00007996,99340.0,99339.0,1.21884162]
[1740143859997,2.00007996,99340.0,99339.0,1.21524414]
[1740143860401,2.15107596,99340.0,99339.0,1.21524414]
[1740143860615,2.15107596,99340.0,99339.0,1.11259845]
[1740143860821,2.00007996,99340.0,99339.0,1.21524414]
[1740143862438,2.00007996,99340.0,99339.0,1.26374414]
[1740143862632,2.00007996,99340.0,99339.0,1.58564414]
[1740143862965,2.00007996,99340.0,99339.0,1.61525258]
[1740143863174,2.00007996,99340.0,99339.0,1.58564414]
[1740143863614,2.00007996,99340.0,99339.0,1.57864414]
[1740143863835,2.00007996,99340.0,99339.0,1.58564414]
[1740143864010,2.00007996,99340.0,99339.0,1.57864414]
[1740143864216,2.00007996,99340.0,99339.0,1.57164414]
[1740143864474,2.00007996,99340.0,99339.0,1.58564414]
[1740143864671,2.00007996,99340.0,99339.0,1.58560414]
[1740143864840,2.00007996,99340.0,99339.0,1.57860414]
[1740143865251,2.00007996,99340.0,99339.0,1.57160414]
[1740143865450,2.00007996,99340.0,99339.0,1.57860414]
[1740143865660,2.00007996,99340.0,99339.0,1.58560414]
[1740143866528,2.00093086,99340.0,99339.0,1.58560414]
[1740143867141,2.11858099,99340.0,99339.0,1.57860414]
[1740143867278,1.96758499,99340.0,99339.0,1.57860414]
[1740143867478,1.96758499,99340.0,99339.0,1.58560414]
[1740143867867,1.96758499,99340.0,99339.0,1.57860414]
[1740143868279,1.96758499,99340.0,99339.0,1.58560414]
[1740143868485,1.96758499,99340.0,99339.0,1.57860414]
[1740143868890,2.11858099,99340.0,99339.0,1.58560414]
[1740143869113,2.11858099,99340.0,99339.0,1.57860414]
[1740143869530,2.11858099,99340.0,99339.0,1.57636414]
[1740143869732,2.11858099,99340.0,99339.0,0.41974974]
[1740143870110,2.11858099,99340.0,99339.0,0.41978974]
[1740143870499,2.11858099,99340.0,99339.0,0.41974974]
[1740143872677,2.11858099,99340.0,99339.0,0.09784974]
[1740143873125,2.11858099,99340.0,99339.0,0.08868974]
[1740143873326,2.11858099,99340.0,99339.0,0.09084974]
[1740143873729,2.11858099,99340.0,99339.0,0.09784974]
[1740143874859,2.11858099,99340.0,99339.0,0.09084974]
[1740143875226,2.11858099,99340.0,99339.0,0.09684974]
[1740143875847,2.11858099,99340.0,99339.0,0.02228964]
[1740143876669,2.11858099,99340.0,99339.0,0.02224964]
[1740143877083,2.13048293,99340.0,99339.0,0.02224964]
[1740143877432,2.13048293,99340.0,99339.0,0.01312964]
[1740143877662,2.11858099,99340.0,99339.0,0.01312964]
[1740143879389,2.13004864,99340.0,99339.0,0.01312964]
[1740143879719,2.11858099,99340.0,99339.0,0.01312964]
[1740143882054,1.96758499,99340.0,99339.0,0.01312964]
[1740143882373,1.96758499,99340.0,99339.0,0.09162964]
[1740143882374,2.11858099,99340.0,99339.0,0.09162964]
[1740143882888,2.11858099,99340.0,99339.0,0.02220964]
[1740143883121,2.11858099,99340.0,99339.0,0.00012964]
[1740143883336,2.11858099,99340.0,99339.0,0.01620964]
[1740143883537,2.11858099,99340.0,99339.0,0.02320964]
[1740143883877,2.11858099,99340.0,99339.0,0.01620964]
[1740143884307,2.11858099,99340.0,99339.0,0.02320964]
[1740143884662,2.11858099,99340.0,99339.0,0.01620964]
[1740143884869,2.11858099,99340.0,99339.0,0.00920964]
[1740143885319,2.11858099,99340.0,99339.0,0.00012964]
[1740143885514,2.41962668,99340.0,99339.0,6.4e-07]
[1740143885746,0.15,99339.0,99315.0,0.02975011]
[1740143885919,0.15,99339.0,99307.0,0.0751]
[1740143885920,0.151039,99312.0,99311.0,0.08952921]
[1740143887038,0.1624205,99312.0,99311.0,0.08952921]
[1740143887459,0.41506619,99312.0,99311.0,0.08952921]
[1740143887914,0.41506619,99312.0,99311.0,0.09652921]
[1740143888121,0.41506619,99312.0,99311.0,0.10352921]
[1740143888540,0.41506619,99312.0,99311.0,0.09652921]
[1740143888750,0.41506619,99312.0,99311.0,0.09752921]
[1740143888951,0.41506619,99312.0,99311.0,2.1e-07]
[1740143889198,0.42960704,99312.0,99311.0,2.1e-07]
[1740143889611,0.151068,99293.0,99292.0,0.00358842]
[1740143891395,0.151068,99293.0,99292.0,0.00558842]
[1740143892557,0.152068,99293.0,99292.0,0.007]
[1740143892959,0.301071,99291.0,99290.0,0.00358842]
[1740143893157,0.40371669,99291.0,99290.0,0.00358842]
[1740143893366,0.40371669,99291.0,99290.0,4.2e-07]
[1740143893568,0.301081,99284.0,99283.0,8.2e-07]
[1740143893770,0.40372669,99284.0,99283.0,8.2e-07]
[1740143894757,0.1511,99272.0,99271.0,0.00011015]
[1740143896199,0.1511,99272.0,99271.0,0.00015809]
[1740143896843,0.1521,99272.0,99271.0,0.00206747]
[1740143900611,0.1511,99272.0,99271.0,6.747e-05]
[1740143902659,0.1521,99272.0,99271.0,0.00706747]
[1740143903267,0.1511,99272.0,99271.0,6.747e-05]
[1740143903492,0.1521,99272.0,99271.0,0.00706747]
[1740143903912,0.1521,99272.0,99271.0,0.01006747]
[1740143906285,0.1521,99272.0,99271.0,4.7e-07]
[1740143906710,0.3021,99272.0,99271.0,4.7e-07]
[1740143908405,0.3029511,99272.0,99271.0,4.7e-07]
[1740143914298,0.1529511,99272.0,99271.0,4.7e-07]
[1740143916578,0.1479511,99272.0,99271.0,4.7e-07]
[1740143917570,0.40059679,99272.0,99271.0,4.7e-07]
[1740143919531,0.44719679,99272.0,99271.0,4.7e-07]
[1740143920098,0.40059679,99272.0,99271.0,4.7e-07]
[1740143924855,0.2979511,99272.0,99271.0,4.7e-07]
[1740143932798,0.1479511,99272.0,99271.0,4.7e-07]
[1740143933499,0.1479511,99272.0,99271.0,0.07980047]
[1740143934199,0.1479511,99272.0,99271.0,0.0798]
[1740143934609,0.1479511,99272.0,99271.0,0.0838]
[1740143935150,0.1469511,99272.0,99271.0,0.0838]
[1740143935523,0.1479511,99272.0,99271.0,0.0898]
[1740143935949,0.1469511,99272.0,99271.0,0.0838]
[1740143936371,0.1479511,99272.0,99271.0,0.0898]
[1740143936561,0.1479511,99272.0,99271.0,0.0858]
[1740143936765,0.1479511,99272.0,99271.0,0.0888]
[1740143940435,0.0018511,99272.0,99271.0,0.23654569]
[1740143940568,0.0018511,99272.0,99271.0,0.26633392]
[1740143940772,0.01149263,99303.0,99273.0,0.1297]
[1740143941002,0.201359,99325.0,99297.0,0.0832]
[1740143941228,0.15591373,99330.0,99299.0,0.0832]
[1740143941440,0.201385,99313.0,99306.0,0.0832]
[1740143941610,0.151046,99307.0,99306.0,0.0832]
[1740143942840,0.15117546,99307.0,99306.0,0.0832]
[1740143943469,0.15217546,99307.0,99306.0,0.0902]
[1740143943818,0.15217546,99307.0,99306.0,0.0942]
[1740143944236,0.1520949,99307.0,99306.0,0.0942]
[1740143944650,0.00112946,99307.0,99306.0,0.0942]
[1740143945466,0.00112946,99307.0,99306.0,0.19684569]
[1740143945871,0.00112946,99307.0,99306.0,0.2440539]
[1740143946076,0.00012946,99307.0,99306.0,0.23184569]
[1740143946285,0.00012946,99307.0,99306.0,0.23884569]
[1740143946420,0.00012946,99307.0,99306.0,0.31932899]
[1740143946624,0.00012946,99307.0,99306.0,0.32632899]
[1740143948717,0.00012946,99307.0,99306.0,0.31932899]
[1740143948885,0.00012946,99307.0,99306.0,0.32632899]
[1740143949089,0.15117546,99307.0,99306.0,0.32632899]
[1740143949294,0.15117546,99307.0,99306.0,0.25472569]
[1740143949497,0.15117546,99307.0,99306.0,0.24072569]
[1740143949895,0.15117546,99307.0,99306.0,0.24772569]
[1740143950104,0.15117546,99307.0,99306.0,0.1292]
[1740143950434,0.15117546,99307.0,99306.0,0.14504]
[1740143950642,0.15117546,99307.0,99306.0,0.13804]
[1740143951062,0.15117546,99307.0,99306.0,0.14504]
[1740143951692,0.15117546,99307.0,99306.0,0.0902]
[1740143951892,0.15117546,99307.0,99306.0,0.10604]
[1740143952322,0.15117546,99307.0,99306.0,0.0972]
[1740143952548,0.15117546,99307.0,99306.0,0.10604]
[1740143952667,0.15117546,99307.0,99306.0,0.02284]
[1740143953281,0.15117546,99307.0,99306.0,0.01584]
[1740143953485,0.15117546,99307.0,99306.0,0.007]
[1740143954370,0.15117546,99307.0,99306.0,0.014]
[1740143954876,0.15117546,99307.0,99306.0,0.007]
[1740143955085,0.16236052,99307.0,99306.0,0.007]
[1740143955311,0.16236052,99307.0,99306.0,0.014]
[1740143955521,0.31236052,99307.0,99306.0,0.014]
[1740143955729,0.31236052,99307.0,99306.0,0.007]
[1740143956408,0.41500621,99307.0,99306.0,0.007]
[1740143956616,0.151078,99286.0,99285.0,0.0088]
[1740143956819,0.01131452,99307.0,99285.0,0.1656833]
[1740143957022,0.201399,99305.0,99286.0,0.00120848]
[1740143957300,0.201399,99305.0,99287.0,0.00120841]
[1740143957512,0.151068,99293.0,99288.0,0.00120841]
[1740143957714,0.201399,99305.0,99288.0,0.00120841]
[1740143957923,0.201399,99305.0,99289.0,0.1287]
[1740143958132,0.00012946,99307.0,99290.0,0.00120836]
[1740143958344,0.00012946,99307.0,99291.0,0.10385402]
[1740143958540,0.201397,99306.0,99291.0,0.10385402]
[1740143958779,0.151069,99292.0,99291.0,0.10264569]
[1740143959200,0.151067,99294.0,99291.0,0.10264569]
[1740143959377,0.201399,99305.0,99291.0,0.10264569]
[1740143959576,0.151068,99293.0,99291.0,0.10264569]
[1740143959799,0.151072,99290.0,99289.0,0.1287]
[1740143960229,0.151072,99290.0,99289.0,0.13746]
[1740143961084,0.151072,99290.0,99289.0,0.1287]
[1740143961299,0.151072,99290.0,99289.0,0.13746]
[1740143962150,0.151072,99290.0,99289.0,0.1287]
[1740143962360,0.151072,99290.0,99289.0,0.01476]
[1740143962570,0.151089,99279.0,99278.0,0.0788]
[1740143962780,0.151089,99279.0,99278.0,0.08756]
[1740143964118,0.151089,99279.0,99278.0,0.09256]
[1740143965283,0.151089,99279.0,99278.0,0.09956]
[1740143966242,0.151089,99279.0,99278.0,0.0908]
[1740143966445,0.151089,99279.0,99278.0,0.02072]
[1740143967147,0.16227418,99279.0,99278.0,0.02072]
[1740143968205,0.16227418,99279.0,99278.0,0.01372]
[1740143968603,0.16227418,99279.0,99278.0,0.02072]
[1740143968965,0.16227418,99279.0,99278.0,0.007]
[1740143969234,0.16227418,99279.0,99278.0,0.009]
[1740143969582,0.16227418,99279.0,99278.0,0.007]
[1740143969995,0.16227418,99279.0,99278.0,0.008]
[1740143970194,0.16227418,99279.0,99278.0,0.001]
[1740143970599,0.16227418,99279.0,99278.0,0.007]
[1740143971031,0.1511,99272.0,99271.0,0.0017022]
[1740143972147,0.1511,99272.0,99271.0,0.0087022]
[1740143972483,0.15122939,99272.0,99271.0,0.0087022]
[1740143972692,0.15122939,99272.0,99271.0,0.0097022]
[1740143976039,0.25387508,99272.0,99271.0,0.0097022]
[1740143977035,0.25387508,99272.0,99271.0,0.0017022]
[1740143977371,0.25387508,99272.0,99271.0,0.0077022]
[1740143977823,0.25387508,99272.0,99271.0,0.0017022]
[1740143978057,0.25387508,99272.0,99271.0,0.0077022]
[1740143988441,0.25387508,99272.0,99271.0,2e-07]
[1740143988442,0.87301593,99272.0,99271.0,2e-07]
[1740143988626,0.30113,99252.0,99251.0,0.89827]
[1740143988800,0.40377569,99252.0,99251.0,0.89827]
[1740143989809,0.40377569,99252.0,99251.0,0.101059]
[1740143992192,0.15116,99232.0,99225.0,0.08933061]
[1740143992394,0.25380569,99232.0,99225.0,0.08933061]
[1740143992550,0.25380569,99232.0,99211.0,1.01462871]
[1740143992752,0.151199,99207.0,99206.0,0.08924097]
[1740143993540,0.15132825,99207.0,99206.0,0.08924097]
[1740143994248,0.15232825,99207.0,99206.0,0.09624097]
[1740143995136,0.16320768,99207.0,99206.0,0.10324097]
[1740143995334,0.16320768,99207.0,99206.0,0.09624097]
[1740143995335,0.15232825,99207.0,99206.0,0.09624097]
[1740143995536,0.15232825,99207.0,99206.0,0.10224097]
[1740143996945,0.15232825,99207.0,99206.0,0.013]
[1740143997997,0.15132825,99207.0,99206.0,0.006]
[1740143999403,0.15132825,99207.0,99206.0,0.013]
[1740144000760,0.15132825,99207.0,99206.0,0.1412]
[1740144001480,0.00012925,99207.0,99206.0,0.24384569]
[1740144003599,0.00012925,99207.0,99206.0,0.23684569]
[1740144003800,0.00012925,99207.0,99206.0,0.24384569]
[1740144004029,0.00012925,99207.0,99206.0,0.23784569]
[1740144004238,0.00012925,99207.0,99206.0,0.24484569]
[1740144004421,0.00012925,99207.0,99206.0,0.23784569]
[1740144004861,0.15132825,99207.0,99206.0,0.23784569]
[1740144005063,0.15132825,99207.0,99206.0,0.24628569]
[1740144005682,0.15132825,99207.0,99206.0,0.14364]
[1740144005893,0.15132825,99207.0,99206.0,0.15064]
[1740144006103,0.15132825,99207.0,99206.0,0.10404]
[1740144006500,0.15132825,99207.0,99206.0,0.02244]
[1740144006864,0.15132825,99207.0,99206.0,0.007]
[1740144007271,0.151203,99204.0,99203.0,0.00844]
[1740144008514,0.151203,99204.0,99203.0,0.00944]
[1740144009043,0.151203,99204.0,99203.0,0.001]
[1740144010064,0.151203,99204.0,99203.0,0.007]
[1740144010464,0.151203,99204.0,99203.0,0.001]
[1740144010665,0.151209,99200.0,99199.0,0.0084]
[1740144011625,0.151209,99200.0,99199.0,0.0912]
[1740144012030,0.00012925,99207.0,99199.0,0.0932]
[1740144012230,0.151208,99201.0,99200.0,0.00120954]
[1740144012431,0.201608,99203.0,99199.0,0.0932]
[1740144012432,0.151209,99200.0,99199.0,0.0848]
[1740144012696,0.151209,99200.0,99199.0,0.0104]
[1740144013124,0.151209,99200.0,99199.0,0.0174]
[1740144013324,0.151209,99200.0,99199.0,0.0154]
[1740144013530,0.151209,99200.0,99199.0,0.0134]
[1740144013753,0.151209,99200.0,99199.0,0.0084]
[1740144013947,0.151209,99200.0,99199.0,0.0154]
[1740144014106,0.151209,99200.0,99199.0,0.0204]
[1740144016056,0.151209,99200.0,99199.0,0.012]
[1740144016280,0.151209,99200.0,99199.0,0.0204]
[1740144018067,0.151209,99200.0,99199.0,0.012]
[1740144019143,0.151209,99200.0,99199.0,0.005]
[1740144019644,0.151209,99200.0,99199.0,0.012]
[1740144019852,0.201602,99206.0,99199.0,0.007]
[1740144020069,0.151218,99194.0,99193.0,0.0096096]
[1740144020355,0.151218,99194.0,99193.0,0.0084]
[1740144021135,0.151218,99194.0,99193.0,0.0134]
[1740144021334,0.201602,99205.0,99193.0,0.0134]
[1740144021697,0.151217,99196.0,99194.0,0.00120961]
[1740144021849,0.201617,99198.0,99193.0,0.0134]
[1740144022058,0.201602,99205.0,99193.0,0.0134]
[1740144022461,0.151214,99197.0,99194.0,0.00120961]
[1740144022660,0.151214,99197.0,99193.0,0.0134]
[1740144022837,0.00098045,99207.0,99193.0,0.0084]
[1740144023040,0.00098045,99207.0,99194.0,0.0052096]
[1740144023464,0.151217,99195.0,99194.0,0.0052096]
[1740144023681,0.151217,99195.0,99194.0,0.004]
[1740144024308,0.151218,99194.0,99193.0,1.03002871]
[1740144025382,0.151218,99194.0,99193.0,1.02302871]
[1740144026073,0.201615,99199.0,99193.0,1.02302871]
[1740144026279,0.3224,99237.0,99194.0,0.21335526]
[1740144026467,0.151203,99205.0,99195.0,0.02979995]
[1740144026651,0.20257945,99207.0,99196.0,0.10385523]
[1740144026867,0.151204,99204.0,99197.0,0.02979995]
[1740144027085,0.151201,99206.0,99198.0,0.10264569]
[1740144027264,0.00098045,99207.0,99199.0,0.02979995]
[1740144027439,0.151202,99205.0,99199.0,0.02979995]
[1740144027642,0.00098045,99207.0,99199.0,0.02979995]
[1740144027854,0.151202,99205.0,99199.0,0.03100948]
[1740144028048,0.00098045,99207.0,99200.0,0.02979995]
[1740144028273,0.00098045,99207.0,99199.0,0.02979995]
[1740144028436,0.00098045,99207.0,99201.0,0.02979995]
[1740144028437,0.151202,99205.0,99201.0,0.02979995]
[1740144028638,0.201601,99206.0,99202.0,0.02979995]
[1740144028864,0.00098045,99207.0,99203.0,0.02979995]
[1740144029095,0.00098045,99207.0,99203.0,1.01462871]
[1740144029259,0.151202,99205.0,99204.0,0.02979995]
[1740144029834,0.1520512,99206.0,99204.0,0.02979995]
[1740144031078,0.1520512,99206.0,99204.0,0.03679995]
[1740144031282,0.1520522,99206.0,99205.0,0.02979995]
[1740144031486,0.1520522,99206.0,99205.0,0.03815995]
[1740144032006,0.0008512,99206.0,99205.0,0.03815995]
[1740144032446,0.1520512,99206.0,99205.0,0.03815995]
[1740144032764,0.1520512,99206.0,99205.0,0.04215995]
[1740144033212,0.0008512,99206.0,99205.0,0.04215995]
[1740144033730,0.1520512,99206.0,99205.0,0.04915995]
[1740144034667,0.0008512,99206.0,99205.0,0.04915995]
[1740144035303,0.1520512,99206.0,99205.0,0.04915995]
[1740144036730,0.1520512,99206.0,99205.0,0.04079995]
[1740144036931,0.1520512,99206.0,99205.0,0.04915995]
[1740144041533,0.0008512,99206.0,99205.0,0.04915995]
[1740144042680,0.1520512,99206.0,99205.0,0.04915995]
[1740144043141,0.0008512,99206.0,99205.0,0.04915995]
[1740144044424,0.1520512,99206.0,99205.0,0.04915995]
[1740144045741,0.1520512,99206.0,99205.0,0.04079995]
[1740144046085,0.1520512,99206.0,99205.0,0.01936]
[1740144046493,0.1520512,99206.0,99205.0,0.011]
[1740144046905,0.0008512,99206.0,99205.0,0.011]
[1740144047160,0.0008512,99206.0,99205.0,0.09926]
[1740144047566,0.1520512,99206.0,99205.0,0.12904815]
[1740144047770,0.0008512,99206.0,99205.0,0.12904815]
[1740144047979,0.0008512,99206.0,99205.0,0.12204815]
[1740144048182,0.0008512,99206.0,99205.0,0.12504815]
[1740144048331,0.0008512,99206.0,99205.0,0.13004815]
[1740144049799,0.0008512,99206.0,99205.0,0.13125763]
[1740144050442,0.0008512,99206.0,99205.0,0.12425763]
[1740144050695,0.0008512,99206.0,99205.0,0.13004815]
[1740144050968,0.0008512,99206.0,99205.0,0.12504815]
[1740144051209,0.0008512,99206.0,99205.0,0.22890334]
[1740144051466,0.0008512,99206.0,99205.0,0.23469384]
[1740144052873,0.0008512,99206.0,99205.0,0.22069384]
[1740144053303,0.0008512,99206.0,99205.0,0.23469384]
[1740144056049,0.0008512,99206.0,99205.0,0.22069384]
[1740144056240,0.0008512,99206.0,99205.0,0.84379584]
[1740144056408,0.0008512,99206.0,99205.0,0.87079584]
[1740144056821,0.0008512,99206.0,99205.0,0.87779584]
[1740144057021,0.0008512,99206.0,99205.0,0.87079584]
[1740144057631,0.0008512,99206.0,99205.0,0.87779584]
[1740144061916,0.0008512,99206.0,99205.0,3.94313669]
[1740144062117,0.0008512,99206.0,99205.0,3.99123669]
[1740144062348,0.0008512,99206.0,99205.0,4.69123669]
[1740144062948,0.0008512,99206.0,99205.0,4.68423669]
[1740144063345,0.0008512,99206.0,99205.0,4.69123669]
[1740144063890,0.0008512,99206.0,99205.0,1.66043669]
[1740144064131,0.0008512,99206.0,99205.0,6.46532569]
[1740144064880,0.0008512,99206.0,99205.0,6.52212569]
[1740144065519,0.0008512,99206.0,99205.0,6.72212569]
[1740144065737,0.0008512,99206.0,99205.0,6.71512569]
[1740144066152,0.0008512,99206.0,99205.0,6.72212569]
[1740144066582,0.0008512,99206.0,99205.0,6.71512569]
[1740144067002,0.0008512,99206.0,99205.0,6.72212569]
[1740144067203,0.0008512,99206.0,99205.0,3.36253669]
[1740144067622,0.0008512,99206.0,99205.0,3.36953669]
[1740144068207,0.0008512,99206.0,99205.0,3.36253669]
[1740144068412,0.0008512,99206.0,99205.0,3.35553669]
[1740144068821,0.0008512,99206.0,99205.0,3.36953669]
[1740144069372,0.0008512,99206.0,99205.0,3.36253669]
[1740144069550,0.0008512,99206.0,99205.0,3.56953669]
[1740144069906,0.0008512,99206.0,99205.0,4.07353669]
[1740144070315,0.0008512,99206.0,99205.0,4.06653669]
[1740144070510,0.0008512,99206.0,99205.0,4.05953669]
[1740144070716,0.0008512,99206.0,99205.0,4.06653669]
[1740144071794,0.0008512,99206.0,99205.0,4.07353669]
[1740144079120,0.0008512,99206.0,99205.0,4.06517669]
[1740144079299,0.0008512,99206.0,99205.0,4.07341669]
[1740144079705,0.0008512,99206.0,99205.0,4.05341669]
[1740144080125,0.0008512,99206.0,99205.0,4.07341669]
[1740144080347,0.0008512,99206.0,99205.0,4.05341669]
[1740144080536,0.0008512,99206.0,99205.0,4.07341669]
[1740144080745,0.0008512,99206.0,99205.0,4.05341669]
[1740144080950,0.0008512,99206.0,99205.0,4.07341669]
[1740144081150,0.0008512,99206.0,99205.0,4.05341669]
[1740144081362,0.0008512,99206.0,99205.0,4.07341669]
[1740144081564,0.0008512,99206.0,99205.0,3.84517669]
[1740144081767,0.0008512,99206.0,99205.0,2.00023584]
[1740144081974,0.0008512,99206.0,99205.0,2.15847584]
[1740144082604,0.0008512,99206.0,99205.0,1.97203384]
[1740144082806,0.0008512,99206.0,99205.0,1.90037384]
[1740144083008,0.0008512,99206.0,99205.0,1.89213384]
[1740144083209,0.0008512,99206.0,99205.0,1.89337384]
[1740144083452,0.0008512,99206.0,99205.0,1.20037384]
[1740144083657,0.0008512,99206.0,99205.0,1.14357384]
[1740144084080,0.0008512,99206.0,99205.0,1.13533384]
[1740144084249,0.0008512,99206.0,99205.0,1.14353384]
[1740144085018,0.0008512,99206.0,99205.0,1.18507469]
[1740144085212,0.0008512,99206.0,99205.0,1.88507469]
[1740144085452,0.0008512,99206.0,99205.0,1.96187469]
[1740144085661,0.0008512,99206.0,99205.0,6.76676369]
[1740144085861,0.0008512,99206.0,99205.0,6.81486369]
[1740144087082,0.0008512,99206.0,99205.0,6.96606569]
[1740144089546,0.0008512,99206.0,99205.0,7.02286569]
[1740144090968,0.0008512,99206.0,99205.0,7.01466569]
[1740144091178,0.0008512,99206.0,99205.0,5.12697669]
[1740144091691,0.0008512,99206.0,99205.0,3.65597669]
[1740144091859,0.0008512,99206.0,99205.0,3.45007669]
[1740144092071,0.0008512,99206.0,99205.0,3.12177669]
[1740144092705,0.0008512,99206.0,99205.0,2.92797669]
[1740144092908,0.0008512,99206.0,99205.0,2.92801669]
[1740144093740,0.0008512,99206.0,99205.0,2.16167669]
[1740144093873,0.0008512,99206.0,99205.0,2.06487669]
[1740144094082,0.0008512,99206.0,99205.0,2.05857584]
[1740144094550,0.0008512,99206.0,99205.0,2.07311669]
[1740144095090,0.0008512,99206.0,99205.0,2.05857584]
[1740144095280,0.0008512,99206.0,99205.0,1.68057384]
[1740144095476,0.1520512,99206.0,99205.0,1.67233384]
[1740144095687,0.1520512,99206.0,99205.0,0.98057384]
[1740144096184,0.0008512,99206.0,99205.0,0.98057384]
[1740144098562,0.1520512,99206.0,99205.0,0.98057384]
[1740144098768,0.0008512,99206.0,99205.0,0.98057384]
[1740144100365,0.1520512,99206.0,99205.0,0.98057384]
[1740144100566,0.1520512,99206.0,99205.0,0.87792815]
[1740144101435,0.1520512,99206.0,99205.0,0.84814]
[1740144101599,0.2019512,99206.0,99205.0,0.5262]
[1740144101982,0.2019512,99206.0,99205.0,0.5192]
[1740144102891,0.2019512,99206.0,99205.0,0.5122]
[1740144103101,0.2019512,99206.0,99205.0,0.5192]
[1740144103439,0.2019512,99206.0,99205.0,0.5262]
[1740144104394,0.2019512,99206.0,99205.0,0.5192]
[1740144104533,0.2019512,99206.0,99205.0,0.5122]
[1740144104878,0.2019512,99206.0,99205.0,0.5262]
[1740144105181,0.0507512,99206.0,99205.0,0.5262]
[1740144105416,0.0008512,99206.0,99205.0,0.5262]
[1740144106242,0.0008512,99206.0,99205.0,0.78004769]
[1740144106447,0.0008512,99206.0,99205.0,0.84007646]
[1740144107650,0.0008512,99206.0,99205.0,0.68887446]
[1740144107852,0.0008512,99206.0,99205.0,0.84007646]
[1740144109517,0.0008512,99206.0,99205.0,0.83307646]
[1740144109805,0.0008512,99206.0,99205.0,0.82607646]
[1740144109959,0.0008512,99206.0,99205.0,0.84007646]
[1740144110395,0.0008512,99206.0,99205.0,0.68887446]
[1740144112026,0.0008512,99206.0,99205.0,0.65912369]
[1740144112428,0.1520512,99206.0,99205.0,0.556478]
[1740144112750,0.0008512,99206.0,99205.0,0.556478]
[1740144115680,0.0008512,99206.0,99205.0,0.55597454]
[1740144115887,0.1520512,99206.0,99205.0,0.5262]
[1740144116084,0.1520512,99206.0,99205.0,0.55597376]
[1740144116260,0.1520512,99206.0,99205.0,0.5262]
[1740144116701,0.1520512,99206.0,99205.0,0.52616]
[1740144119984,0.1520512,99206.0,99205.0,0.518]
[1740144120195,0.1520512,99206.0,99205.0,0.52616]
[1740144120556,0.0008512,99206.0,99205.0,0.52616]
[1740144120801,0.0008512,99206.0,99205.0,0.62880569]
[1740144120980,0.0008512,99206.0,99205.0,1.03687984]
[1740144122015,0.0008512,99206.0,99205.0,1.02987984]